Cogmind - Beta 12 @@@ ROGUE MODE // 2023.03.13 @ 00:47:19 Player: Runia Result: Destroyed by C-40 Crusher with Compactor Performance ------------- Evolutions (3) 1500 Regions Visited (7) 1400 Robots Destroyed (82) 410 Value Destroyed (2244) 2244 Prototype IDs (35) 700 Alien Tech Used (0) 0 Bonus (557) 557 TOTAL SCORE: 6811 Bonus ------- High Alert Combat Kills 191 Follower Combat Kills 66 Aligned with FarCom 300 Cogmind --------- Core Integrity 0/700 Matter 300/300 Energy 100/100 System Corruption 10% Temperature Cool (0) Movement Core (50) Location -7/Waste Parts ------- > --- POWER (2) -------- (None) > --- PROPULSION (3) --- (None) > --- UTILITY (5) ------ (None) > --- WEAPON (3) ------- (None) > --- INVENTORY (5) ---- Light Treads Light Treads Light Treads Heavy Assault Rifle Grenade Launcher Peak State ------------ > --- POWER ------------ Nuclear Core Reinforced Deuterium Engine > --- PROPULSION ------- Light Treads Light Treads Improved Treads > --- UTILITY ---------- Coolant Injector High-capacity Storage Unit Improved Sensor Array Improved Signal Interpreter Improved Shield Generator > --- WEAPON ----------- Improved Assault Rifle Improved Assault Rifle Improved Assault Rifle > --- INVENTORY -------- Light Treads Light Treads Light Treads Light Treads Armored Treads Compact Wheel Improved Heat Sink Compact Matter Pod Hardened Medium Armor Plating Improved Medium Armor Plating Hacking Suite Long-range Tractor Beam Plasma Cannon Heavy Assault Rifle Heavy Assault Rifle Minigun Grenade Launcher Grenade Launcher Mini Grenade Launcher Impact Mace [Rating: 39] Favorites ----------- Power Improved Ion Engine Engine Improved Ion Engine Power Core Nuclear Core Propulsion Light Treads Treads Light Treads Leg Aluminum Leg Wheel Armored Wheel Utility High-capacity Storage Unit Device Improved Heat Sink Storage High-capacity Storage Unit Processor Improved Signal Interpreter Protection Light Armor Plating Weapon Improved Assault Rifle Energy Gun Medium Laser Ballistic Gun Improved Assault Rifle Launcher Rocket Launcher Impact Weapon Impact Mace Build | -11 -10 -10 -10 -9 -8 -7 -7 ------- Run | Jun Mat Min Exi Min Mat Fac Was Slots Evolved 6 | . . . . . 4 2 . Power 1 | . . . . . . 1 . Propulsion 1 | . . . . . 1 . . Utility 3 | . . . . . 2 1 . Weapon 1 | . . . . . 1 . . Parts Attached 62 | 3 9 4 2 3 27 13 1 Power 9 | . 1 2 . . 4 2 . Engine 7 | . 1 2 . . 3 1 . Core 2 | . . . . . 1 1 . Reactor . | . . . . . . . . Propulsion 15 | 2 1 1 . . 10 . 1 Treads 12 | 1 1 1 . . 9 . . Leg . | . . . . . . . . Wheel 3 | 1 . . . . 1 . 1 Hover . | . . . . . . . . Flight . | . . . . . . . . Utility 16 | . 4 . . . 6 6 . Device 8 | . 2 . . . 1 5 . Storage 2 | . 2 . . . . . . Processor 1 | . . . . . . 1 . Hackware . | . . . . . . . . Protection 5 | . . . . . 5 . . Artifact . | . . . . . . . . Weapon 22 | 1 3 1 2 3 7 5 . Energy Gun 3 | 1 2 . . . . . . Energy Cannon . | . . . . . . . . Ballistic Gun 14 | . 1 1 2 2 5 3 . Ballistic Cannon . | . . . . . . . . Launcher 4 | . . . . 1 2 1 . Special Weapon . | . . . . . . . . Impact Weapon 1 | . . . . . . 1 . Slashing Weapon . | . . . . . . . . Piercing Weapon . | . . . . . . . . Special Melee Weapon . | . . . . . . . . Unidentified Prototypes 3 | . 1 . . . 1 1 . Parts Lost 13 | . 1 1 . . 2 2 7 Power 3 | . 1 . . . . 1 1 Propulsion 3 | . . 1 . . . . 2 Utility 5 | . . . . . 1 1 3 Weapon 2 | . . . . . 1 . 1 Highest Loss Streak 7 | . 1 1 . . 1 1 7 To Critical Strikes . | . . . . . . . . Average Slot Usage (%) 92 | . 93 100 71 85 98 97 64 Engine 9 | . 11 14 14 14 6 1 4 Core 2 | . . . . . 2 10 1 Treads 25 | . 27 28 28 28 22 23 12 Wheel 1 | . . . . . 4 . 2 Device 15 | . 10 14 14 14 13 23 15 Storage 11 | . 14 14 14 14 9 7 4 Protection 3 | . . . . . 12 4 . Energy Gun 3 | . 13 7 . . . . . Ballistic Gun 18 | . 14 20 . 14 26 22 15 Naked Turns 21 | . . . . . . . 21 Heaviest Build 77 | 13 50 53 50 53 63 77 77 Greatest Support 63 | 10 40 40 40 40 63 63 63 Greatest Overweight (x) 5 | 1 1 1 1 1 5 1 4 Average Overweight (x) 1 | 1 . 1 1 1 2 . 2 Largest Inventory Capacity 20 | 8 20 20 20 20 20 20 20 Average Capacity 18 | 8 13 20 20 20 20 20 16 Most Carried 20 | 6 12 16 18 18 20 20 20 Average Carried 16 | 5 9 12 17 17 18 19 16 Final Capacity 20 | 8 20 20 20 20 20 20 5 Final Carried 20 | 4 12 16 17 17 20 20 5 Class Distribution -------------------- 58% | Mutant 19% | Tank 14% | Scavenger-Tank 4% | Scavenger-Skirmisher Dominant Class ---------------- Mutant | -10/Materials Mutant | -10/Mines Mutant | -10/Exiles Mutant | -9/Mines Scavenger-Tank | -8/Materials Tank | -7/Factory Scavenger-Skirmisher | -7/Waste Resources | -11 -10 -10 -10 -9 -8 -7 -7 ----------- Run | Jun Mat Min Exi Min Mat Fac Was Matter Collected 2446 | 183 294 131 . 45 1089 704 . Remotely . | . . . . . . . . Salvage Created 2874 | . 409 104 . 6 1550 805 . Parts 165 | . 26 10 . 6 99 24 . Haulers Intercepted 6 | . 1 . . . 5 . . Recyclers Shooed 12 | . 5 1 . 1 3 2 . Parts Field Recycled . | . . . . . . . . Retrieved Matter . | . . . . . . . . Parts Self-Destructed . | . . . . . . . . Prevented . | . . . . . . . . Kills | -11 -10 -10 -10 -9 -8 -7 -7 ------- Run | Jun Mat Min Exi Min Mat Fac Was Combat Hostiles Destroyed 56 | . 8 2 . 4 32 10 . Melee 1 | . . . . . . 1 . Guns 37 | . 8 2 . . 22 5 . AOE 17 | . . . . 4 10 3 . Classes Destroyed 13 | . 5 1 . . 5 2 . Worker 4 | . 1 . . . 1 2 . Builder 1 | . . . . . 1 . . Tunneler 3 | . . 1 . . 2 . . Hauler 6 | . 1 . . . 5 . . Recycler 7 | . 1 . . . 2 4 . Operator 1 | . . . . . . 1 . Watcher 4 | . . . . . 2 2 . Swarmer 16 | . 3 . . 4 9 . . Grunt 29 | . 5 2 . . 14 8 . Brawler 1 | . . . . . . 1 . Duelist 1 | . . . . . 1 . . Sentry 7 | . . . . . 7 . . Hunter 2 | . . . . . 1 1 . Best Kill Streak 13 | . 4 2 . 4 13 7 . Combat Bots Only 12 | . 3 2 . 4 12 3 . Max Kills in Single Turn 4 | . 1 1 . 3 4 2 . Gunslinging . | . . . . . . . . Exploded 4 | . . . . 3 4 2 . Melee 1 | . . . . . . 1 . Uniques/NPCs Destroyed . | . . . . . . . . Combat | -11 -10 -10 -10 -9 -8 -7 -7 -------- Run | Jun Mat Min Exi Min Mat Fac Was Damage Taken 3056 | . 364 203 74 57 912 627 819 Core 931 | . 81 . . 8 128 67 647 Absorbed by Shields 259 | . . . . . 34 225 . Core Remaining (%) 80 | 100 . . . 64 76 . . Volleys Fired 181 | . 47 10 1 5 86 32 . Largest 3 | . 2 2 1 1 3 3 . Hottest 70 | . 70 70 20 33 69 69 . Shots Fired 454 | . 93 22 1 5 242 91 . Gun 440 | . 93 22 1 3 233 88 . Cannon . | . . . . . . . . Launcher 14 | . . . . 2 9 3 . Special . | . . . . . . . . Kinetic 385 | . 47 13 1 3 233 88 . Thermal 55 | . 46 9 . . . . . Explosive 14 | . . . . 2 9 3 . Electromagnetic . | . . . . . . . . Robot Hit Streak 23 | . 9 10 . 2 12 23 . Robot Miss Streak 5 | . 5 2 . 1 3 2 . Penetration Max . | . . . . . . . . Secondary Targets 1 | . . . . . . 1 . Max Gunslinging Chain 1 | . . . . . . 1 . Shots Hit Robots 279 | . 54 12 . 2 141 70 . Core Hits 149 | . 22 7 . 6 79 35 . Critical Kills . | . . . . . . . . Critical Parts Destroyed 6 | . . . . . 2 4 . Critical Strikes 7 | . 1 . . . 2 4 . Burn 1 | . 1 . . . . . . Destroy 3 | . . . . . 2 1 . Smash 3 | . . . . . . 3 . Melee Attacks 7 | . . . . . . 7 . Impact 7 | . . . . . . 7 . Slashing . | . . . . . . . . Piercing . | . . . . . . . . Sneak Attacks 1 | . . . . . . 1 . Combat Hostiles . | . . . . . . . . Follow-up Attacks . | . . . . . . . . Damage Inflicted 6243 | . 679 163 . 282 3110 2009 . Guns 3874 | . 679 163 . 20 2085 927 . Cannons . | . . . . . . . . Explosions 2083 | . . . . 262 1025 796 . Melee 286 | . . . . . . 286 . Ramming . | . . . . . . . . Kinetic 3535 | . 401 102 . 20 2085 927 . Thermal 339 | . 278 61 . . . . . Explosive 1942 | . . . . 262 1025 655 . Electromagnetic 141 | . . . . . . 141 . Impact 286 | . . . . . . 286 . Slashing . | . . . . . . . . Piercing . | . . . . . . . . Highest Corruption 10 | . 4 4 4 4 4 2 10 Average Corruption 3 | . 3 4 4 4 3 1 8 Corruption Purged . | . . . . . . . . Corruption Blocked . | . . . . . . . . Effects 87 | . 10 29 14 8 13 11 2 Message Errors 24 | . 1 10 7 1 1 4 . Matter Fused 21 | . 4 7 3 1 2 4 . Heat Flow Errors 7 | . 1 3 2 1 . . . Energy Discharges 9 | . 2 2 . 1 3 . 1 Parts Rejected 2 | . . . . . 1 . 1 Parts Fused 2 | . . 1 . . 1 . . Data Loss (minor) 12 | . . 3 2 3 2 2 . Data Loss (major) 4 | . 1 1 . 1 1 . . Misfires 5 | . . 2 . . 2 1 . Weapon Failures 1 | . 1 . . . . . . Overload Shots . | . . . . . . . . Overflow Damage 308 | . . . . . 35 273 . Projectiles . | . . . . . . . . Explosions 52 | . . . . . 35 17 . Melee 256 | . . . . . . 256 . Knockbacks 1 | . . . . . . 1 . Impact 1 | . . . . . . 1 . Kinetic . | . . . . . . . . Secondary . | . . . . . . . . Self-Inflicted Damage 197 | . . . . . 47 150 . Shots 5 | . . . . . 1 4 . Rammed . | . . . . . . . . Targets Rammed . | . . . . . . . . Kicked . | . . . . . . . . Crushed . | . . . . . . . . Highest Temperature 251 | . 122 250 251 123 . 36 . Average Temperature 46 | . 17 99 129 75 . 13 . Received Heat Transfer 810 | . 153 114 20 . 326 197 . Siege Activations . | . . . . . . . . Robots Corrupted 1 | . . . . . . 1 . Combat Hostiles 1 | . . . . . . 1 . Parts Fried 2 | . . . . . . 2 . Impact Corruptions 6 | . . . . . . 6 . Robots Melted . | . . . . . . . . Combat Hostiles . | . . . . . . . . Parts Melted . | . . . . . . . . Heat Transferred 979 | . 794 185 . . . . . Parts Sabotaged . | . . . . . . . . Parts Stolen . | . . . . . . . . Parts Stripped . | . . . . . . . . Power Chain Reactions . | . . . . . . . . Missiles Intercepted . | . . . . . . . . Alert | -11 -10 -10 -10 -9 -8 -7 -7 ------- Run | Jun Mat Min Exi Min Mat Fac Was Peak Influence 812 | . 151 66 . 129 812 219 76 Initial 132 | . . 6 . . 50 132 76 Average 196 | . 76 28 . 20 546 138 57 Maximum Alert Level 3 | . . . . . 3 1 . Low Security (%) 72 | 100 100 100 . 100 9 81 100 Level 1 6 | . . . . . 9 18 . Level 2 15 | . . . . . 60 . . Level 3 5 | . . . . . 21 . . Level 4 . | . . . . . . . . Level 5 . | . . . . . . . . High Security . | . . . . . . . . Max Security . | . . . . . . . . Squads Dispatched 9 | . 1 . . . 6 2 . Investigation 1 | . . . . . 1 . . Extermination 1 | . . . . . . 1 . Reinforcement 4 | . 1 . . . 2 1 . Assault 1 | . . . . . 1 . . Garrison 2 | . . . . . 2 . . Intercept . | . . . . . . . . Searches Triggered . | . . . . . . . . Construction Impeded . | . . . . . . . . Haulers Reinforced . | . . . . . . . . Active Scanning Responses . | . . . . . . . . Cargo Convoy Interrupts . | . . . . . . . . Stealth | -11 -10 -10 -10 -9 -8 -7 -7 --------- Run | Jun Mat Min Exi Min Mat Fac Was Distress Signals 9 | . 4 . . . 4 1 . Communications Jammed . | . . . . . . . . Distress Signals . | . . . . . . . . Times Spotted 92 | . 19 4 5 4 40 18 2 Peak Tracking Total 9 | . 6 2 9 4 9 5 2 Tactical Retreats 3 | . . . . . 1 2 . Traps | -11 -10 -10 -10 -9 -8 -7 -7 ------- Run | Jun Mat Min Exi Min Mat Fac Was Traps Triggered 6 | . 2 . . . 2 2 . Indirectly . | . . . . . . . . Trap Hack Attempts . | . . . . . . . . Triggered . | . . . . . . . . Disarmed . | . . . . . . . . Reprogrammed . | . . . . . . . . Reused . | . . . . . . . . Traps Extracted . | . . . . . . . . Installed . | . . . . . . . . Triggered . | . . . . . . . . Machines | -11 -10 -10 -10 -9 -8 -7 -7 ---------- Run | Jun Mat Min Exi Min Mat Fac Was Machines Disabled 8 | . . . 2 2 3 1 . Max in Single Turn 3 | . . . 1 2 3 1 . Garrison Access 2 | . . . . . 1 1 . Machines Repaired . | . . . . . . . . Machines Sabotaged . | . . . . . . . . Overloaded Fab Kills . | . . . . . . . . Hacking | -11 -10 -10 -10 -9 -8 -7 -7 --------- Run | Jun Mat Min Exi Min Mat Fac Was Machines Accessed 19 | . 2 . 2 . 9 6 . Terminals 15 | . 2 . . . 8 5 . Fabricators . | . . . . . . . . Repair Stations . | . . . . . . . . Recycling Units . | . . . . . . . . Scanalyzers . | . . . . . . . . Garrison Access 2 | . . . . . 1 1 . Total Hacks 48 | . 6 . 2 . 25 15 . Successful 21 | . 1 . 2 . 13 5 . Failed 27 | . 5 . . . 12 10 . Catastrophic 3 | . 1 . . . . 2 . Database Lockouts . | . . . . . . . . Manual 13 | . 4 . 1 . 5 3 . Terminals 44 | . 6 . . . 24 14 . Fabricators . | . . . . . . . . Repair Stations . | . . . . . . . . Recycling Units . | . . . . . . . . Scanalyzers . | . . . . . . . . Garrison Access 2 | . . . . . 1 1 . Terminal Hacks 18 | . 1 . 2 . 12 3 . Record 1 | . . . 1 . . . . Prototype ID Bank 4 | . . . . . 4 . . Branch Access Points 1 | . . . . . . 1 . Unreport Threat 3 | . . . . . 3 . . Locate Traps 3 | . . . . . 2 1 . Hauler Manifests 2 | . . . . . 2 . . Zone Layout 3 | . 1 . . . 1 1 . EX-Prototype ID Bank 1 | . . . 1 . . . . Fabricator Hacks . | . . . . . . . . Repair Station Hacks . | . . . . . . . . Recycling Unit Hacks . | . . . . . . . . Scanalyzer . | . . . . . . . . Garrison Access Hacks 2 | . . . . . 1 1 . Seal Access 2 | . . . . . 1 1 . Unauthorized Hacks 1 | . . . . . . 1 . Terminals 1 | . . . . . . 1 . Botnet 1 | . . . . . . 1 . Fabricators . | . . . . . . . . Repair Stations . | . . . . . . . . Recycling Units . | . . . . . . . . Scanalyzers . | . . . . . . . . Garrison Access . | . . . . . . . . Data Cores Recovered . | . . . . . . . . Used . | . . . . . . . . Hacking Detections 15 | . 2 . . . 8 5 . Full Trace Events 1 | . . . . . 1 . . Feedback Events . | . . . . . . . . Feedback Blocked . | . . . . . . . . Robot Schematics Acquired . | . . . . . . . . Robots Built . | . . . . . . . . Authchips . | . . . . . . . . Time . | . . . . . . . . Total Robot Build Rating . | . . . . . . . . Part Schematics Acquired . | . . . . . . . . Parts Built . | . . . . . . . . Authchips . | . . . . . . . . Time . | . . . . . . . . Total Part Build Rating . | . . . . . . . . Parts Repaired . | . . . . . . . . Time . | . . . . . . . . Parts Recycled . | . . . . . . . . Recycled Matter . | . . . . . . . . Retrieved Matter . | . . . . . . . . Retrieved Components . | . . . . . . . . Parts Scanalyzed . | . . . . . . . . Part Schematics Acquired . | . . . . . . . . Parts Damaged . | . . . . . . . . Bothacking | -11 -10 -10 -10 -9 -8 -7 -7 ------------ Run | Jun Mat Min Exi Min Mat Fac Was Used RIF Installer . | . . . . . . . . Robots Hacked . | . . . . . . . . Non-combat . | . . . . . . . . Combat . | . . . . . . . . Robot Hacks Applied . | . . . . . . . . Relay Couplers Released 2 | . . . . . . 2 . Machine Destruction 2 | . . . . . . 2 . Fabnet Peak Effective % . | . . . . . . . . Robots Rewired . | . . . . . . . . Allies Hacked . | . . . . . . . . Hacks Repelled . | . . . . . . . . Allies | -11 -10 -10 -10 -9 -8 -7 -7 -------- Run | Jun Mat Min Exi Min Mat Fac Was Total Allies 3 | . . 3 . . . . . Largest Group 3 | . . 3 3 . . . . Highest-Rated Group 40 | . . 40 40 . . . . Highest-Rated Ally 16 | . . 16 16 . . . . Total Orders . | . . . . . . . . Ally Attacks 22 | . . 5 17 . . . . Total Damage 175 | . . 40 135 . . . . Kills 4 | . . 2 2 . . . . Allies Corrupted . | . . . . . . . . Allies Melted . | . . . . . . . . Intel | -11 -10 -10 -10 -9 -8 -7 -7 ------- Run | Jun Mat Min Exi Min Mat Fac Was Robot Analysis Total . | . . . . . . . . Derelict Logs Recovered 2 | . . 1 . 1 . . . Drone Launches . | . . . . . . . . Drone Recoveries . | . . . . . . . . Exploration | -11 -10 -10 -10 -9 -8 -7 -7 ------------- Run | Jun Mat Min Exi Min Mat Fac Was Turns Passed 5749 | 5 910 1158 824 339 1274 1143 96 Spaces Moved 2354 | 1 400 456 342 136 561 428 30 Core . | . . . . . . . . Treads 2035 | . 368 456 342 136 291 428 14 Legs . | . . . . . . . . Wheels 319 | 1 32 . . . 270 . 16 Hover . | . . . . . . . . Flight . | . . . . . . . . Fastest Speed 95 | 95 95 240 240 240 150 160 160 Average Speed 208 | 95 183 240 240 240 161 227 197 Slowest Speed 240 | 95 240 240 240 240 165 240 240 Overloaded Moves . | . . . . . . . . Propulsion Burnouts . | . . . . . . . . Robots Hopped . | . . . . . . . . Cave-ins Triggered . | . . . . . . . . Exploration Rate (%) 44 | 2 45 95 70 43 63 17 24 Regions Visited 7 Branch Regions 3 Pre-discovered Areas 2 | . . 1 1 . . . . Known Exits Taken 1 | . . . . . 1 . . Unknown Exits Taken 5 | 1 1 1 1 1 . . . Scrap Searched 3 | . . 1 . 2 . . . Spaces Dug 2 | . . . . . . 2 . Terrain Destroyed 120 | . . . . 10 102 8 . Melee 2 | . . . . . . 2 . Projectile . | . . . . . . . . AOE 118 | . . . . 10 102 6 . Terrain Rammed . | . . . . . . . . Walls Destroyed . | . . . . . . . . Machines Disabled . | . . . . . . . . Actions | -11 -10 -10 -10 -9 -8 -7 -7 --------- Run | Jun Mat Min Exi Min Mat Fac Was Total 2814 | 5 484 501 347 144 748 518 67 Wait 128 | . 10 24 . . 32 26 36 Move 2348 | . 399 455 341 135 560 428 30 Hop . | . . . . . . . . Pick Up 46 | . 11 5 . 1 23 6 . Fast Attach 10 | . 4 1 . . 2 3 . Attach 16 | 2 . 1 2 1 8 2 . Detach 3 | . . . 3 . . . . Swap 36 | 1 5 2 . 2 17 8 1 Drop 39 | 2 8 3 . . 20 6 . Fire 181 | . 47 10 1 5 86 32 . Melee 7 | . . . . . . 7 . Ram . | . . . . . . . . Kick . | . . . . . . . . Crush . | . . . . . . . . Escape Stasis . | . . . . . . . . Rewire . | . . . . . . . . Trap . | . . . . . . . . Miscellaneous . | . . . . . . . . Route ------- -11/Junkyard -10/Materials -10/Mines (discovered 3 exits: [*Mat x2] / *Exi) -10/Exiles -9/Mines -8/Materials (discovered 4 exits: *Fac x3 / Sto) -7/Factory (discovered 3 exits: [*Fac] / Low x2) -7/Waste History --------- Turn | Location | Event 6 | -11/Junkyard | Discovered new exit (range 0) 6 | -11/Junkyard | Entered Materials 301 | -10/Materials | Build established: Mutant 491 | -10/Materials | Discovered new exit (range 7) 916 | -10/Materials | Entered Mines 1049 | -10/Mines | Met a Derelict bent on vengeance 1226 | -10/Mines | Assisted by bots powering up and referring to "LRC-V3" 1452 | -10/Mines | Discovered new exit (range 16) 1828 | -10/Mines | Learned location of Storage (-8) 1923 | -10/Mines | Discovered new exit (range 7) 1933 | -10/Mines | Learned 2 Materials zone layouts 2059 | -10/Mines | Deemed a non-threat by the Exiles lab entrance 2062 | -10/Mines | Discovered new exit (range 5) 2074 | -10/Mines | Entered Exiles 2074 | -10/Exiles | Accompanied by 3 allies 2135 | -10/Exiles | Met 8R-AWN 2174 | -10/Exiles | Met EX-HEX 2267 | -10/Exiles | Met EX-DEC 2282 | -10/Exiles | Learned location of Zion (-6) 2339 | -10/Exiles | Met EX-BIN 2366 | -10/Exiles | Aligned with FarCom system 2368 | -10/Exiles | Given EX-Vault access code 2426 | -10/Exiles | Opened EX-Vault 2485 | -10/Exiles | Warned to stay clear of 0b10 Research branches 2783 | -10/Exiles | Discovered new exit (range 10) 2849 | -10/Exiles | Attacked by the Exiles 2898 | -10/Exiles | Entered Mines 2992 | -9/Mines | Received a Rocket Launcher from a helpful Derelict 3091 | -9/Mines | Learned 8 Materials zone layouts 3192 | -9/Mines | Discovered new exit (range 10) 3237 | -9/Mines | Entered Materials 3237 | -8/Materials | Evolved 4 slots: Propulsion x1, Utility x2, Weapon x1 3238 | -8/Materials | Identified exit to Factory 3238 | -8/Materials | Identified exit to Storage 3327 | -8/Materials | Garrison activated, responded to threat 3427 | -8/Materials | Destroyed 12 combat bots 3865 | -8/Materials | Build established: Scavenger-Tank 4064 | -8/Materials | Discovered exit to Factory (range 10) 4437 | -8/Materials | First assault squad dispatched 4511 | -8/Materials | Entered Factory 4511 | -7/Factory | Evolved 2 slots: Power x1, Utility x1 4634 | -7/Factory | Discovered new exit (range 12) 4700 | -7/Factory | Build established: Tank 4875 | -7/Factory | Identified exit to Lower Caves 5654 | -7/Factory | Sucked down chute 5654 | -7/Factory | Entered Waste 5669 | -7/Waste | EMP discharged 5669 | -7/Waste | System corruption reached 10% 5676 | -7/Waste | Spotted C-40 Crusher 5690 | -7/Waste | Spotted C-40 Crusher 5719 | -7/Waste | Crushed by Compactor (1 part destroyed, 1 dropped) 5722 | -7/Waste | Crushed by Compactor (1 part destroyed, 1 dropped) 5725 | -7/Waste | Crushed by Compactor (1 part destroyed, 1 dropped) 5728 | -7/Waste | Crushed by Compactor (1 part destroyed, 1 dropped) 5729 | -7/Waste | Crushed by Compactor (1 part destroyed, 1 dropped) 5739 | -7/Waste | Core integrity fell below 50% 5747 | -7/Waste | Core integrity fell below 20% 5750 | -7/Waste | Destroyed by C-40 Crusher with Compactor Last Messages --------------- 05722_ Rnf. Deuterium Engine crushed. 05722_ Lgt. Treads crushed. 05722_ Imp. Assault Rifle destroyed. 05725_ Lgt. Treads crushed. 05725_ Imp. Assault Rifle crushed. 05728_ Com. Wheel crushed. 05728_ Hcp. Storage Unit crushed. 05728_ Imp. Sensor Array destroyed. 05728_ Hvy. Assault Rifle crushed. 05728_ Imp. Treads crushed. 05728_ Hrd. Medium Armor Plating crushed. 05728_ Arm. Treads crushed. 05729_ Mni. Grenade Launcher crushed. 05729_ Hacking Suite crushed. 05729_ Coolant Injector crushed. 05729_ Imp. Signal Interpreter crushed. 05731_ Lgt. Treads crushed. 05731_ Lrn. Tractor Beam crushed. 05731_ Plasma Cannon crushed. 05731_ Hcp. Storage Unit crushed. Map ----- +----------------------------------------------------+ | ?????????????????????? #????????????????????? | | ?????????????????????? #????????????????????? | | ??????????????????????? #????????????????????? | | ???????????????????????# #????????????????????? | | ?????????############??# #????????????????????? | | ?????????# #??# #????????????????????? | | ?????????# #??# #????????????????????? | | ?????????# #### ######## ?????????? | | ?????????# ????????? | | ?????????# * ????????? | | ?????????# ????????? | | ?????????# ????????? | | ?????????# #### ######## ?????????? | | ?????????# #??# #????????? ?????????? | | ?????????# #??# #????????????????????? | | ?????????############??# #????????????????????? | | ?????????????????????### #????????????????????? | | ?????????????????????# #????????????????????? | | ?????????????????????# #????????????????????? | | ?????????????????????# #????????????????????? | | ?????????????????????# #????????????????????? | | ?????????????????????###[!] #????????????????????? | | ???????????????????????#/! #????????????????????? | | ???????????????????????#CCCC#????????????????????? | | ???????????????????????#CCCC#????????????????????? | | ???????????????????????#[@=!#????????????????????? | | ???????????????????????######????????????????????? | | ?????????????????????????????????????????????????? | | ?????????????????????????????????????????????????? | | ?????????????????????????????????????????????????? | | ?????????????????????????????????????????????????? | | ?????????????????????????????????????????????????? | | ?????????????????????????????????????????????????? | | ?????????????????????????????????????????????????? | | ?????????????????????????????????????????????????? | | ?????????????????????????????????????????????????? | | ?????????????????????????????????????????????????? | | ?????????????????????????????????????????????????? | | ?????????????????????????????????????????????????? | | ?????????????????????????????????????????????????? | | ?????????????????????????????????????????????????? | | ?????????????????????????????????????????????????? | | ?????????????????????????????????????????????????? | | ?????????????????????????????????????????????????? | | ?????????????????????????????????????????????????? | | ?????????????????????????????????????????????????? | | ?????????????????????????????????????????????????? | | ?????????????????????????????????????????????????? | | ?????????????????????????????????????????????????? | | ?????????????????????????????????????????????????? | +----------------------------------------------------+ Best States ------------- Heat Dissipation 48 Coolant Potential 65 Energy Generation 25 Energy Capacity 430 Matter Stores 300 Matter Capacity 300 Sight Range 16 Robot Scan Range 15 Terrain Scan Density 10 Armor Coverage 300 Evasion (%) 41 Recoil Reduction 3 Item Schematics ----------------- None Robot Schematics ------------------ None Fabricated ------------ Nothing Alien Tech Used ----------------- None Achievements -------------- None Challenges ------------ None Game ------ Seed InsulatedOmegaChronowheel Manual? 0 Play Time 00:28:29 Cumulative 773.2 hours Start 2023.03.13 @ 00:10:52 End 2023.03.13 @ 00:47:19 Sessions 1 Manual Loads 0 Difficulty Rogue Special Mode None Game No. 672 Rogue 672 Adventurer 0 Explorer 0 Win Type - Total 35 Types 14/5/6/1/1/1/5/1/1 Lore% 93 Gallery% 97 Achievement% 81 Wizard Run 0 Options --------- ASCII 0 Keyboard 0 Movement Mouse Keybinds 1 Fullscreen 2 Font 24/Smallcaps Map View 76x50 Tactical HUD 1 Map Filters NONE Filters NONE Steam 1 RUN: 3181d88b-8c1d-4cda-94d7-3d44f39aeb24